bitfinex/quotes_ETHUSD_20250807
["timestamp","ask_amount","ask_price","bid_price","bid_amount"]
[1754588280142,0.9298,3820.0,3819.8,2.61792676]
[1754588280515,0.4605,3819.9,3819.7,0.1312]
[1754588280722,0.5917,3820.3,3820.0,2.61776538]
[1754588280920,4.9538,3820.2,3819.9,2.61784462]
[1754588281223,4.023,3820.1,3820.0,2.61780104]
[1754588282512,1.09305,3820.6,3820.2,2.61766399]
[1754588282513,0.002,3820.6,3820.2,2.61766399]
[1754588282715,4.022,3820.5,3820.0,0.46042495]
[1754588283012,4.022,3820.5,3820.3,2.6175618]
[1754588283433,0.1332,3820.6,3820.3,2.6175618]
[1754588283641,4.022,3820.4,3820.2,2.61765021]
[1754588283953,4.4825,3820.4,3820.2,2.61765021]
[1754588284109,4.4825,3820.4,3820.0,0.1312]
[1754588284110,0.9298,3820.3,3820.1,2.61771698]
[1754588284423,4.022,3820.4,3820.3,2.61759547]
[1754588284627,4.022,3820.4,3820.0,2.74899146]
[1754588284795,4.022,3820.4,3820.1,2.61767967]
[1754588284995,4.022,3820.4,3820.2,2.61760496]
[1754588285331,4.4825,3820.4,3820.2,2.61760496]
[1754588285526,0.002,3820.3,3820.2,2.61760496]
[1754588285719,4.024,3820.3,3820.2,2.61760496]
[1754588286329,0.002,3820.3,3820.2,2.61760496]
[1754588286630,4.024,3820.3,3820.2,2.61760496]
[1754588288293,0.002,3820.3,3820.2,2.61760496]
[1754588288540,4.024,3820.3,3820.2,2.61760496]
[1754588289814,4.4845,3820.3,3820.2,2.61760496]
[1754588290735,4.9538,3820.3,3820.2,2.61760496]
[1754588291234,4.024,3820.3,3820.2,2.61760496]
[1754588291418,4.024,3820.3,3820.2,3.4160342]
[1754588291624,4.024,3820.3,3820.2,3.5472342]
[1754588291934,0.002,3820.3,3820.2,3.5788342]
[1754588292106,1e-08,3820.3,3820.2,7.1143342]
[1754588292300,0.002,3821.1,3821.0,2.61711593]
[1754588292499,0.002,3821.1,3821.0,19.77611165]
[1754588292736,0.002,3821.1,3821.0,19.80771165]
[1754588293314,0.002,3821.1,3821.0,19.93891165]
[1754588293510,0.002,3821.1,3821.0,19.92441165]
[1754588293825,0.002,3821.1,3821.0,20.82441165]
[1754588294416,0.002,3821.1,3821.0,20.80731165]
[1754588295902,0.002,3821.1,3821.0,20.82441165]
[1754588296211,0.4605,3822.4,3822.3,2.61622583]
[1754588296411,4.4815,3822.4,3822.3,2.61622583]
[1754588296718,4.4815,3822.4,3821.7,0.55]
[1754588296719,4.9508,3822.4,3822.2,2.61627574]
[1754588296905,0.9298,3822.4,3822.3,2.61622583]
[1754588297103,0.4605,3822.4,3822.3,2.61622583]
[1754588298333,0.4605,3822.8,3822.7,2.61595207]
[1754588298852,6.4174,3823.0,3822.7,2.61595207]
[1754588299137,4.021,3822.8,3822.7,2.61595207]
[1754588299303,4.021,3822.8,3822.7,2.74635207]
[1754588299702,4.021,3822.8,3821.9,4.021]
[1754588299703,6.02785,3822.8,3821.8,3.0]
[1754588299941,1.0602,3822.7,3822.5,2.61604437]
[1754588300111,0.1304,3822.7,3822.5,2.61604437]
[1754588300313,0.9298,3822.6,3822.5,2.61604437]
[1754588300635,4.021,3822.6,3822.5,2.61608894]
[1754588301040,4.9508,3822.6,3821.6,3.55]
[1754588301334,0.9298,3822.5,3822.2,2.61628909]
[1754588301641,0.9298,3822.4,3822.2,2.61628909]
[1754588302027,0.9298,3822.4,3822.1,0.1312]
[1754588302224,4.021,3822.6,3822.1,2.61630932]
[1754588302225,0.9298,3822.3,3822.1,2.61630932]
[1754588302551,4.9498,3822.2,3822.1,2.61630932]
[1754588304437,4.9498,3822.2,3821.5,0.55]
[1754588304638,4.4893,3822.2,3822.1,2.61636273]
[1754588304816,4.4893,3822.2,3822.0,2.6164052]
[1754588305015,4.4893,3822.2,3821.9,0.1312]
[1754588305219,0.4605,3822.1,3822.0,2.61643118]
[1754588305524,0.9298,3822.1,3822.0,2.61643118]
[1754588305704,4.9498,3822.1,3822.0,2.61643118]
[1754588307710,4.4805,3822.1,3822.0,2.61643118]
[1754588307903,0.4605,3822.1,3822.0,2.61643118]
[1754588308133,0.002,3822.2,3822.0,2.61643118]
[1754588308134,0.002,3822.2,3822.1,2.61636273]
[1754588308333,4.5023,3822.2,3822.1,2.61636273]
[1754588308606,4.022,3822.2,3822.1,2.61636273]
[1754588309548,0.002,3822.2,3822.1,2.61636273]
[1754588309720,1e-08,3822.2,3822.1,6.79276212]
[1754588310043,1e-08,3822.2,3822.1,10.84336212]
[1754588310540,0.002,3823.1,3823.0,2.61574679]
[1754588311843,0.002,3823.1,3823.0,7.2212043]
[1754588312246,0.002,3823.1,3823.0,11.1098043]
[1754588312544,0.002,3823.1,3823.0,11.2573043]
[1754588312861,0.002,3823.9,3823.8,2.61519953]
[1754588313014,0.002,3823.9,3823.8,2.87671948]
[1754588313212,0.002,3823.9,3823.8,3.00711948]
[1754588313610,0.002,3823.9,3823.8,3.55711948]
[1754588313814,0.002,3823.9,3823.8,10.57611948]
[1754588314369,0.002,3823.9,3823.8,10.77718636]
[1754588315513,0.4823,3823.9,3823.8,9.76459953]
[1754588315712,0.935,3823.9,3823.8,5.74559953]
[1754588316144,0.002,3823.9,3823.8,6.29559953]
[1754588316348,0.935,3823.9,3823.2,3.0]
[1754588316666,0.935,3823.9,3823.4,3.0]
[1754588316667,0.933,3823.8,3823.4,3.0]
[1754588316816,0.933,3823.7,3823.4,3.1304]
[1754588317014,0.933,3823.6,3823.5,2.61537052]
[1754588317247,0.002,3823.9,3823.8,2.61519953]
[1754588317662,0.002,3823.9,3823.8,2.74559953]
[1754588318747,0.002,3823.9,3823.8,3.83168783]
[1754588319265,0.002,3823.9,3823.8,7.85068783]
[1754588320733,0.4823,3823.9,3823.8,3.29559953]
[1754588322355,0.002,3823.9,3823.8,3.29559953]
[1754588323049,0.002,3823.9,3823.8,11.21259953]
[1754588323759,1e-08,3823.9,3823.8,11.22709953]
[1754588323916,1e-08,3823.9,3823.8,13.91097881]
[1754588325344,1e-08,3823.9,3823.8,13.89647881]
[1754588326075,1e-08,3823.9,3823.8,7.19559953]
[1754588326281,1e-08,3823.9,3823.8,11.21259953]
[1754588327062,1e-08,3823.9,3823.8,11.08219953]
[1754588327283,1e-08,3823.9,3823.8,11.21259953]
[1754588328276,1e-08,3823.9,3823.8,11.22969953]
[1754588328446,1e-08,3823.9,3823.8,13.91357881]
[1754588328778,1e-08,3823.9,3823.8,13.79767881]
[1754588328978,0.002,3824.7,3824.6,6.16465251]
[1754588329164,1e-08,3824.7,3824.6,10.18365251]
[1754588330092,1e-08,3825.1,3825.0,6.16437908]
[1754588330257,1e-08,3825.3,3825.2,19.24980671]
[1754588330462,1e-08,3825.3,3825.2,23.40020671]
[1754588331580,1e-08,3825.3,3825.2,10.31464239]
[1754588332980,0.48030001,3825.3,3825.2,10.31464239]
[1754588333179,1e-08,3825.3,3825.2,11.75147878]
[1754588333983,1e-08,3825.3,3825.2,24.8370431]
[1754588335679,1e-08,3825.3,3825.2,11.75147878]
[1754588335994,0.93300001,3825.3,3825.2,11.94328874]
[1754588336845,0.93300001,3825.3,3825.2,10.50345235]
[1754588337049,0.93300001,3825.3,3825.2,9.95345235]
[1754588337291,0.93300001,3825.3,3825.2,10.50345235]
[1754588337652,1e-08,3825.3,3825.2,10.50345235]
[1754588337852,0.93300001,3825.3,3825.2,10.50345235]
[1754588338909,0.48030001,3825.3,3825.2,10.50345235]
[1754588339203,0.48030001,3825.3,3825.2,11.81523549]
[1754588339760,0.94890001,3825.3,3825.2,11.81523549]
[1754588339999,0.94890001,3825.3,3825.2,10.50345235]
[1754588340307,0.94890001,3825.3,3825.2,5.74464239]
[1754588340490,0.94890001,3825.3,3825.2,9.76064239]
[1754588340891,0.94890001,3825.3,3825.2,5.74464239]
[1754588341102,0.94890001,3825.3,3825.1,4.27]
[1754588341282,1e-08,3825.3,3825.1,4.27]
[1754588341470,0.9462,3825.2,3825.1,6.88431073]
[1754588342073,0.9462,3825.2,3825.1,4.27]
[1754588342766,0.9462,3825.2,3824.5,0.1304]
[1754588342767,3.06563047,3825.2,3824.5,0.1304]
[1754588343121,0.1304,3824.9,3824.4,2.61473443]
[1754588343281,1.50797047,3824.8,3824.3,4.4004]
[1754588343487,0.1304,3824.9,3824.3,4.4004]
[1754588343488,0.9462,3824.7,3824.5,2.61467754]
[1754588343683,0.1304,3824.9,3824.3,4.4004]
[1754588343684,0.9462,3824.6,3824.3,4.4004]
[1754588343868,0.9462,3824.5,3824.2,2.61487612]
[1754588344069,2.61453318,3824.8,3824.0,3.0]
[1754588344264,0.9462,3824.4,3824.1,0.1304]
[1754588344476,0.9462,3824.4,3824.1,2.74536153]
[1754588344703,0.9462,3824.3,3824.1,2.74536153]
[1754588344891,0.9462,3824.2,3824.1,2.74539043]
[1754588345096,2.61596078,3825.7,3824.1,4.84207254]
[1754588345270,0.56191792,3825.2,3824.1,7.457061]
[1754588345470,0.1304,3825.0,3824.8,2.61446948]
[1754588345670,1.50811792,3824.9,3824.8,2.61446948]
[1754588346122,0.9462,3824.9,3824.8,2.74486948]
[1754588346272,0.9462,3824.9,3824.8,0.1304]
[1754588346701,0.9462,3824.9,3824.8,2.74491579]
[1754588347823,0.4686,3825.2,3825.1,2.61431073]
[1754588348058,1e-08,3825.3,3825.2,2.61424239]
[1754588348805,0.94620001,3825.3,3825.2,2.61424239]
[1754588349012,1e-08,3825.3,3825.2,2.61424239]
[1754588349500,0.47760001,3825.3,3825.2,2.61424239]
[1754588349824,0.94620001,3825.3,3825.2,2.61424239]
[1754588352109,1e-08,3825.3,3825.2,2.61424239]
[1754588353221,0.47760001,3825.3,3825.2,2.61424239]
[1754588354013,0.94620001,3825.3,3825.2,2.61424239]
[1754588355914,0.47760001,3825.3,3825.2,2.61424239]
[1754588356412,0.47760001,3825.3,3825.2,3.55174378]
[1754588357874,1e-08,3825.3,3825.2,4.10174378]
[1754588359514,0.47760001,3825.3,3825.2,4.10174378]
[1754588359818,0.94620001,3825.3,3825.2,3.16424239]
[1754588360017,0.94620001,3825.3,3825.2,2.61424239]
[1754588361331,1e-08,3825.3,3825.2,2.61424239]
[1754588362501,1e-08,3825.3,3825.2,3.16424239]
[1754588363005,1e-08,3825.3,3825.2,7.43424239]
[1754588363207,1e-08,3825.3,3825.2,8.85364378]
[1754588363594,0.47760001,3825.3,3825.2,8.85364378]
[1754588364494,1e-08,3825.3,3825.2,8.85364378]
[1754588366390,1e-08,3825.3,3825.2,11.87074378]
[1754588366698,0.002,3826.1,3825.2,22.51962578]
[1754588366891,0.002,3826.1,3826.0,16.37966008]
[1754588367096,0.002,3826.1,3826.0,23.39466008]
[1754588367487,0.002,3826.1,3826.0,10.30909576]
[1754588368432,3.56132745,3826.1,3826.0,0.1304]
[1754588368633,3.56132745,3826.1,3825.2,1.41940139]
[1754588368634,2.61440383,3825.0,3824.0,0.001]
[1754588368802,0.9457,3824.9,3824.4,2.61577723]
[1754588368992,0.4661,3824.8,3824.4,0.001]
[1754588371095,0.4796,3824.7,3824.4,0.001]
[1754588371792,0.4661,3824.6,3824.4,0.001]
[1754588371998,2.64740488,3824.5,3824.4,0.001]
[1754588372328,7.11032087,3824.5,3824.4,0.001]
[1754588372498,6.63072087,3824.5,3824.4,0.001]
[1754588372690,7.57642087,3824.5,3824.4,0.001]
[1754588374409,8.13877005,3824.5,3824.4,0.001]
[1754588374608,2.12573139,3824.5,3824.4,0.001]
[1754588374841,15.4457,3824.5,3824.4,0.001]
[1754588375213,15.4457,3824.5,3824.4,2.61578924]
[1754588375433,15.4457,3824.5,3824.4,0.001]
[1754588376210,15.4457,3824.5,3824.4,2.61578924]
[1754588376655,15.4457,3824.5,3824.4,0.001]
[1754588378526,15.5761,3824.5,3824.4,0.001]
[1754588380324,1.0761,3824.5,3824.4,0.001]
[1754588381578,5.0921,3824.5,3824.4,0.001]
[1754588383469,5.12478401,3824.5,3824.4,0.001]
[1754588383673,7.73950488,3824.5,3824.4,0.001]
[1754588383975,7.70682087,3824.5,3824.4,0.001]
[1754588384266,9.36696254,3824.5,3824.4,0.001]
[1754588386974,5.35096254,3824.5,3824.4,0.001]
[1754588387192,6.75224167,3824.5,3824.4,0.001]
[1754588387785,0.9457,3824.5,3824.4,0.001]
[1754588387940,5.0921,3824.5,3824.4,0.001]
[1754588388376,4.1464,3824.5,3824.4,0.001]
[1754588388774,4.626,3824.5,3824.4,0.001]
[1754588389274,5.0921,3824.5,3824.4,0.001]
[1754588391173,9.10548249,3824.5,3824.4,0.001]
[1754588391371,9.34922352,3824.5,3824.4,0.001]
[1754588391553,9.34922378,3824.5,3824.4,0.001]
[1754588392355,4.9627,3824.5,3824.4,0.001]
[1754588392558,7.70782087,3824.5,3824.4,0.001]
[1754588393454,5.0931,3824.5,3824.4,0.001]
[1754588393857,1.0761,3824.5,3824.4,0.001]
[1754588394182,4.1474,3824.5,3824.4,0.001]
[1754588394345,6.28,3824.8,3824.4,0.26259041]
[1754588394546,4.017,3824.7,3824.4,2.61574877]
[1754588394957,4.017,3824.7,3824.5,2.61472079]
[1754588395169,4.017,3824.7,3824.4,2.61577428]
[1754588395969,4.017,3824.7,3824.4,0.001]
[1754588396371,4.017,3824.7,3824.6,2.61465251]
[1754588396575,0.1324,3824.9,3824.8,2.61451579]
[1754588396775,4.1494,3824.9,3824.8,2.61451579]
[1754588396953,4.019,3824.9,3824.8,2.61451579]
[1754588397280,0.002,3824.9,3824.8,2.61451579]
[1754588397455,4.019,3824.9,3824.8,2.74491579]
[1754588397656,4.019,3824.9,3824.8,3.3110391]
[1754588398267,4.26358398,3824.9,3824.8,3.3110391]
[1754588398694,0.002,3824.9,3824.8,3.3110391]
[1754588398991,4.018,3824.9,3824.8,3.3526391]
[1754588399345,4.018,3824.9,3824.8,3.3381391]
[1754588400259,4.018,3824.9,3824.8,3.8881391]
[1754588400260,0.002,3824.9,3824.8,3.8881391]
[1754588400464,1e-08,3824.9,3824.8,6.7722391]
[1754588400686,1e-08,3824.9,3824.8,12.2061491]
[1754588401182,1e-08,3824.9,3824.8,10.6965491]
[1754588401777,1e-08,3824.9,3824.8,9.3106391]
[1754588402102,0.002,3826.1,3826.0,2.61369576]
[1754588402310,0.002,3826.1,3826.0,3.13644311]
[1754588402602,0.002,3826.1,3826.0,6.72804311]
[1754588403090,0.002,3826.1,3826.0,6.81684311]
[1754588404473,1e-08,3826.1,3826.0,6.84394311]
[1754588404646,1e-08,3826.2,3826.1,5.61362745]
[1754588404984,1e-08,3826.5,3826.4,5.61342253]
[1754588405357,1e-08,3826.5,3826.4,5.74382253]
[1754588405552,1e-08,3826.5,3826.4,5.78542253]
[1754588405758,1e-08,3826.5,3826.4,14.58124253]
[1754588406057,1e-08,3826.5,3826.4,14.49667081]
[1754588406246,1e-08,3826.5,3826.4,13.24032181]
[1754588407477,1e-08,3826.5,3826.4,15.95290181]
[1754588407858,1e-08,3826.5,3826.4,15.93840181]
[1754588408274,1e-08,3826.5,3826.4,12.99270181]
[1754588410093,0.94820001,3826.5,3826.4,5.74382253]
[1754588411261,1e-08,3826.5,3826.4,5.74382253]
[1754588412474,0.49440001,3826.5,3826.4,5.74382253]
[1754588412878,1e-08,3826.5,3826.4,5.74382253]
[1754588413485,0.49440001,3826.5,3826.4,5.74382253]
[1754588413678,1e-08,3826.5,3826.4,5.74382253]
[1754588415599,0.49440001,3826.5,3826.4,5.74382253]
[1754588416287,1e-08,3826.5,3826.4,5.74382253]
[1754588416490,1e-08,3826.5,3826.4,6.98095539]
[1754588416804,1e-08,3826.5,3826.4,7.53095539]
[1754588418427,0.94820001,3826.5,3826.4,5.74382253]
[1754588419174,0.49440001,3826.5,3826.4,5.74382253]
[1754588419886,1e-08,3826.5,3826.4,5.74382253]
[1754588420087,1e-08,3826.5,3826.4,6.29382253]
[1754588420279,1e-08,3826.5,3826.4,7.58595539]
[1754588422175,1e-08,3826.5,3826.4,11.85595539]
[1754588424317,1e-08,3826.5,3826.4,7.58595539]
[1754588424722,0.002,3828.0,3826.5,6.16335424]
[1754588425013,0.4538,3827.7,3827.2,6.16287625]
[1754588425212,0.4538,3827.7,3827.2,10.30627625]
[1754588425705,0.4538,3827.7,3827.2,6.29327625]
[1754588425919,0.4558,3827.3,3827.2,6.29327625]
[1754588426079,0.9502,3827.3,3827.2,6.29327625]
[1754588426278,0.9502,3827.3,3827.2,7.58519955]
[1754588426279,0.002,3827.3,3827.2,7.58519955]
[1754588427429,0.002,3827.9,3827.8,3.16246669]
[1754588427715,0.56165066,3829.0,3828.0,2.61233019]
[1754588427876,0.4944,3828.8,3828.0,11.62326321]
[1754588428079,0.24361276,3828.7,3828.0,11.62326321]
[1754588428293,0.24361276,3828.6,3828.0,11.62326321]
[1754588428507,0.4641,3829.1,3828.0,11.65036321]
[1754588428832,0.4641,3828.9,3828.0,11.62326321]
[1754588428980,0.24375863,3828.8,3828.0,11.62326321]
[1754588429180,0.4641,3828.9,3828.0,11.62326321]
[1754588429812,0.4641,3828.7,3828.0,7.61026321]
[1754588430022,0.4641,3828.3,3828.0,11.62226321]
[1754588431788,0.002,3828.5,3828.0,11.62226321]
[1754588432183,0.46410001,3828.1,3828.0,11.62226321]
[1754588432408,1e-08,3828.1,3828.0,11.62226321]
[1754588433311,0.1304,3829.5,3829.4,2.61137515]
[1754588433491,0.4641,3829.6,3829.5,2.61130695]
[1754588433836,0.9158,3829.6,3829.5,2.61130695]
[1754588435431,0.9158,3829.6,3829.4,0.1304]
[1754588435594,0.9158,3829.5,3829.4,0.1304]
[1754588435794,0.9158,3829.5,3829.4,2.61137515]
[1754588435991,0.9158,3829.5,3829.4,0.1304]
[1754588436305,2.6113951,3829.4,3828.7,3.0]
[1754588436527,0.9158,3829.3,3829.0,0.1304]
[1754588436936,0.9158,3829.2,3829.0,2.7420438]
[1754588437240,0.9158,3829.1,3829.0,2.74204794]
[1754588438238,0.9158,3829.1,3829.0,0.1304]
[1754588438402,0.9158,3829.1,3829.0,2.74204794]
[1754588439497,0.4641,3829.1,3829.0,2.74204794]
[1754588440124,0.9158,3829.1,3829.0,2.74204794]
[1754588440328,0.002,3829.6,3829.5,2.61130695]
[1754588440529,0.002,3829.6,3829.4,2.61136971]
[1754588440698,0.4517,3829.5,3829.3,0.1304]
[1754588440892,0.4641,3829.4,3829.3,0.1304]
[1754588441314,0.9158,3829.4,3829.3,0.1304]
[1754588442036,2.61144809,3829.3,3828.9,4.27]
[1754588442191,3.09465834,3829.2,3828.9,4.27]
[1754588442389,3.09465834,3829.2,3828.9,3.77]
[1754588442390,0.9158,3829.1,3828.9,3.77]
[1754588442816,0.9158,3829.0,3828.9,3.77]
[1754588445001,1.47605667,3829.0,3828.9,3.77]
[1754588445219,2.56001489,3829.0,3828.5,0.1304]
[1754588445415,2.61189623,3828.7,3828.0,2.6122885]
[1754588445624,2.61189623,3828.7,3828.1,2.61225182]
[1754588445625,0.9158,3828.6,3828.1,2.61225182]
[1754588445930,15.4158,3828.5,3828.1,0.1304]
[1754588446132,19.4258,3828.5,3828.1,0.1304]
[1754588446293,19.4258,3828.5,3827.0,0.68632804]
[1754588446294,0.1304,3828.3,3828.0,2.61230818]
[1754588446494,0.9158,3828.2,3828.0,2.61229397]
[1754588446832,0.9158,3828.1,3827.8,0.1304]
[1754588447131,0.4641,3828.9,3828.7,2.61181523]
[1754588447330,6.62136231,3829.5,3828.1,2.61226195]
[1754588447331,1.47650243,3828.8,3828.1,3.0]
[1754588447651,1.47650243,3828.8,3828.1,3.51221938]
[1754588447652,0.80407091,3828.7,3828.1,3.51221938]
[1754588447921,0.80407091,3828.7,3828.2,2.61213155]
[1754588447922,0.24334429,3828.6,3828.2,2.61213155]
[1754588448121,0.9158,3828.6,3827.7,3.0]
[1754588448323,0.9158,3828.6,3828.5,2.61198902]
[1754588448529,15.4158,3828.6,3828.4,2.61203862]
[1754588448693,0.9158,3828.5,3827.7,3.0]
[1754588448894,0.9158,3828.5,3827.7,5.61250073]
[1754588449124,0.9158,3828.5,3828.4,2.61205725]
[1754588449630,0.9158,3828.5,3828.1,2.61220793]
[1754588449832,4.01,3828.7,3828.2,2.61218127]
[1754588450000,0.9158,3828.4,3828.1,2.61223504]
[1754588450329,0.9158,3828.4,3828.3,2.61212548]
[1754588450504,0.9158,3828.4,3826.7,4.01]
[1754588450505,2.61217788,3828.3,3826.7,4.01]
[1754588450716,2.61217788,3828.3,3827.6,2.61260309]
[1754588450717,0.94845242,3828.2,3827.6,2.61260309]
[1754588450915,5.28186303,3828.1,3827.7,2.61249724]
[1754588451115,4.01,3828.0,3827.6,2.61260279]
[1754588451315,0.9158,3828.0,3827.4,2.61273508]
[1754588451516,4.9258,3827.9,3827.5,2.61264932]
[1754588451719,0.9158,3827.8,3827.4,2.61272995]
[1754588452016,0.9158,3827.7,3827.5,2.61266777]
[1754588452222,0.9158,3827.7,3827.4,2.61272001]
[1754588452422,0.9158,3827.6,3827.5,2.61267145]
[1754588453129,0.9158,3827.6,3827.4,2.61272359]
[1754588453317,4.01,3827.9,3827.5,2.61267145]
[1754588453517,4.29379833,3827.9,3827.4,2.61271549]
[1754588453734,4.29379833,3827.9,3827.1,2.6128795]
[1754588453735,6.90624143,3827.9,3827.1,2.6128795]
[1754588453931,14.5,3827.8,3826.8,0.001]
[1754588454231,15.4158,3827.8,3827.1,2.61289174]
[1754588454429,2.8069,3827.7,3827.1,2.61289174]
[1754588454636,1.8911,3827.7,3827.1,2.61289174]
[1754588454806,0.9158,3827.6,3827.1,2.61289174]
[1754588455137,15.44845839,3827.5,3826.8,0.001]
[1754588455430,4.011,3827.4,3826.9,2.61303174]
[1754588455636,0.9158,3827.3,3826.8,0.001]
[1754588455995,6.62375004,3827.4,3826.8,0.001]
[1754588455996,0.9158,3827.2,3826.8,0.001]
[1754588456531,0.9158,3827.1,3826.8,0.001]
[1754588457066,0.1304,3826.9,3826.8,0.001]
[1754588457229,4.1414,3826.9,3826.8,0.001]
[1754588457430,5.0572,3826.9,3826.8,2.61414936]
[1754588457742,5.0572,3826.9,3826.8,0.001]
[1754588458248,1.0462,3826.9,3826.8,2.61414936]
[1754588458455,4.011,3827.0,3826.9,2.61303475]
[1754588459853,15.5848,3827.3,3827.2,2.61287625]
[1754588460049,18.9736,3827.3,3827.1,2.61292098]
[1754588460259,18.9736,3827.3,3826.8,0.001]
[1754588460260,19.0028,3827.3,3826.9,2.61308108]
[1754588460469,0.4626,3827.2,3827.0,2.61300738]
[1754588460836,4.011,3827.1,3827.0,2.6130128]
[1754588461647,14.5,3827.4,3827.3,2.61280798]
[1754588461848,18.511,3827.4,3827.3,2.61280798]
[1754588462142,2.61233043,3828.0,3827.3,2.61280798]
[1754588462143,0.6222,3828.0,3827.3,0.1304]
[1754588462482,4.011,3827.9,3827.7,2.61248675]
[1754588462775,4.011,3827.9,3827.4,2.61273971]
[1754588462951,0.9544,3827.8,3827.3,0.1304]
[1754588463269,0.9544,3827.7,3827.4,2.61269187]
[1754588463465,0.9544,3827.6,3827.5,2.61266527]
[1754588464384,0.4626,3827.6,3827.5,2.61266527]
[1754588464534,4.011,3827.7,3827.6,2.61260319]
[1754588464734,0.9544,3827.9,3827.7,2.61250875]
[1754588464977,4.011,3827.8,3827.6,2.61257916]
[1754588465149,4.9654,3827.8,3827.5,2.61266099]
[1754588465347,4.011,3827.8,3827.5,2.61266099]
[1754588465540,0.9544,3827.7,3827.5,2.61266099]
[1754588466943,0.9544,3827.7,3827.5,2.612661]
[1754588467134,4.011,3827.8,3827.3,0.1304]
[1754588467467,4.9654,3827.7,3826.8,0.001]
[1754588467684,5.0958,3827.7,3827.1,2.74331128]
[1754588467881,5.0958,3827.7,3827.1,0.1304]
[1754588467882,4.604,3827.7,3827.1,0.1304]
[1754588468042,0.4918,3827.6,3827.3,2.6127978]
[1754588468237,0.9544,3827.5,3827.2,2.61284843]
[1754588468442,4.011,3827.4,3827.3,2.61280798]
[1754588468667,4.9654,3827.4,3827.3,2.61280798]
[1754588468865,4.9554,3827.4,3827.1,0.1304]
[1754588469067,0.9544,3827.3,3827.1,0.1304]
[1754588469251,0.9544,3827.3,3826.9,2.61308108]
[1754588469451,0.9544,3827.2,3826.9,0.1304]
[1754588469672,4.011,3827.1,3826.9,0.1304]
[1754588469844,4.011,3827.1,3827.0,2.6130128]
[1754588470045,4.9654,3827.1,3827.0,2.6130128]
[1754588470962,4.9654,3827.1,3826.9,2.61306661]
[1754588471292,4.011,3827.1,3827.0,2.6130128]
[1754588471638,4.9654,3827.1,3827.0,2.6130128]
[1754588471991,4.9654,3827.1,3826.9,2.6130546]
[1754588472272,4.011,3827.1,3827.0,2.6130128]
[1754588472478,14.5,3827.3,3827.2,2.61287625]
[1754588472674,18.511,3827.3,3827.2,2.61287625]
[1754588473059,19.4654,3827.3,3827.0,2.6130128]
[1754588473376,0.9544,3827.2,3827.1,2.61294452]
[1754588473578,4.011,3827.2,3827.1,2.61294452]
[1754588474979,4.9654,3827.2,3827.1,2.61294452]
[1754588475184,19.4654,3827.2,3827.1,2.61294452]
[1754588475894,15.4544,3827.2,3827.1,2.61294452]
[1754588476093,14.5,3827.2,3827.1,2.61294452]
[1754588476297,18.511,3827.2,3827.1,2.61294452]
[1754588476503,4.011,3827.2,3827.1,2.61294452]
[1754588480397,0.4918,3827.5,3827.1,2.61294452]
[1754588480594,4.011,3827.4,3827.1,2.61294452]
[1754588480813,4.011,3827.3,3827.2,2.61287625]
[1754588481424,0.9544,3827.6,3827.0,0.1304]
[1754588481593,4.25565035,3827.5,3827.2,2.61287625]
[1754588481788,4.011,3827.5,3827.4,2.61269558]
[1754588481987,4.25565026,3827.5,3827.4,2.61269558]
[1754588482620,4.011,3827.5,3827.4,2.74309558]
[1754588482991,0.6222,3828.0,3827.4,0.71408718]
[1754588483213,2.6115746,3829.2,3827.4,0.71408718]
[1754588483214,4.81949177,3827.9,3827.8,2.61246669]
[1754588483417,0.80849177,3827.9,3827.8,2.61246669]
[1754588483617,0.56377243,3828.2,3828.1,2.61226195]
[1754588483820,4.81951526,3828.2,3828.1,2.61226195]
[1754588484019,4.25574283,3828.2,3828.1,2.74266195]
[1754588484225,4.9654,3828.2,3828.1,2.74266195]
[1754588484522,5.21008486,3828.2,3827.8,2.61243171]
[1754588484682,5.21008486,3828.2,3828.0,2.61233019]
[1754588484683,1.19908486,3828.1,3828.0,2.61233019]
[1754588485018,0.9544,3828.1,3827.9,2.61237335]
[1754588485228,4.1414,3828.2,3828.0,2.61228174]
[1754588485589,0.9544,3828.1,3827.7,2.74292795]
[1754588485817,0.9544,3828.0,3827.9,2.61239844]
[1754588486020,0.9544,3828.0,3827.7,0.1304]
[1754588486021,4.9654,3828.0,3827.7,0.1304]
[1754588486222,4.011,3828.0,3827.7,2.74289249]
[1754588486426,0.9544,3827.9,3827.7,0.1304]
[1754588486718,0.9544,3827.9,3827.8,2.61246669]
[1754588486938,0.9544,3827.9,3827.7,2.74290797]
[1754588487141,0.9544,3827.8,3827.5,2.61266998]
[1754588487347,4.011,3827.7,3827.4,2.6127359]
[1754588487502,4.011,3827.7,3827.6,2.61260319]
[1754588488450,0.9321,3828.5,3827.6,3.60467192]
[1754588488659,4.81892013,3828.4,3828.1,0.1304]
[1754588488821,0.80792013,3828.3,3828.2,2.61215085]
[1754588489329,0.24451537,3828.3,3828.2,2.61215085]
[1754588489553,0.24449177,3828.3,3828.2,2.61215085]
[1754588489719,0.002,3828.5,3828.4,2.61205725]
[1754588490044,0.002,3828.5,3828.4,2.74245725]
[1754588490251,0.002,3828.5,3828.4,3.19895725]
[1754588490744,0.002,3828.5,3828.4,2.74245725]
[1754588490962,0.002,3828.5,3828.4,3.78796682]
[1754588491108,0.002,3828.5,3828.4,7.48286682]
[1754588491747,0.002,3828.5,3828.4,7.33796682]
[1754588492251,0.002,3828.5,3828.4,6.88146682]
[1754588492932,0.002,3828.5,3828.4,7.33796682]
[1754588493253,1e-08,3828.7,3828.6,2.6119208]
[1754588493414,1e-08,3828.7,3828.6,8.63739956]
[1754588493615,1e-08,3828.7,3828.6,12.36919956]
[1754588494038,1e-08,3828.9,3828.8,6.16178437]
[1754588494541,1e-08,3828.9,3828.8,6.61828437]
[1754588494754,1e-08,3828.9,3828.8,8.23374276]
[1754588495133,1e-08,3828.9,3828.8,7.77724276]
[1754588495661,1e-08,3828.9,3828.8,11.78724276]